bitfinex/quotes_BTCUSD_20240815
["timestamp","ask_amount","ask_price","bid_price","bid_amount"]
[1723686566982,0.1537,58924.0,58923.0,1.18572211]
[1723686568728,0.0082,58924.0,58923.0,1.18572211]
[1723686568933,0.0082,58924.0,58923.0,1.93572211]
[1723686569144,0.0082,58924.0,58923.0,2.01172211]
[1723686570347,0.0082,58924.0,58923.0,2.25132011]
[1723686570569,0.0082,58924.0,58923.0,2.24932011]
[1723686570769,0.0082,58924.0,58923.0,2.01172211]
[1723686571054,0.0082,58924.0,58923.0,1.93572211]
[1723686571812,0.1527,58924.0,58923.0,1.93572211]
[1723686572581,0.0717,58924.0,58923.0,1.93572211]
[1723686572765,0.0717,58924.0,58923.0,1.97572211]
[1723686576825,0.0717,58924.0,58923.0,1.92572211]
[1723686578064,0.0717,58924.0,58923.0,2.00942211]
[1723686578476,0.0082,58924.0,58923.0,2.00942211]
[1723686578889,0.0082,58924.0,58923.0,2.01142211]
[1723686579180,0.0082,58924.0,58923.0,2.18553254]
[1723686580593,0.0082,58924.0,58923.0,2.42313054]
[1723686580794,0.0082,58924.0,58923.0,2.51313054]
[1723686581252,0.0082,58924.0,58923.0,2.51513073]
[1723686581454,0.0082,58924.0,58923.0,3.38777794]
[1723686581724,0.00825,58926.0,58925.0,1.14975882]
[1723686581874,0.00825,58926.0,58925.0,2.20384073]
[1723686582258,0.00825,58926.0,58925.0,2.44143073]
[1723686582460,0.0728,58929.0,58928.0,1.51810482]
[1723686582663,0.0728,58929.0,58928.0,2.80388673]
[1723686582893,0.0728,58929.0,58928.0,3.04146473]
[1723686583113,0.0728,58929.0,58928.0,2.80388673]
[1723686584068,0.0728,58929.0,58928.0,2.94318673]
[1723686584197,0.0728,58929.0,58928.0,2.76707611]
[1723686584552,0.0728,58929.0,58928.0,2.94315225]
[1723686585212,0.0728,58929.0,58928.0,2.88975225]
[1723686585415,0.0728,58929.0,58928.0,2.90000238]
[1723686587858,0.0728,58929.0,58928.0,2.90000152]
[1723686589128,0.0728,58929.0,58928.0,2.89800152]
[1723686589543,0.0728,58929.0,58928.0,3.59800237]
[1723686589717,0.0728,58929.0,58928.0,3.60000237]
[1723686591936,0.0728,58929.0,58928.0,3.66630237]
[1723686592152,0.0728,58929.0,58928.0,3.76630237]
[1723686592375,0.00824,58938.0,58928.0,3.76630237]
[1723686592376,0.00824,58938.0,58937.0,1.72403782]
[1723686592577,0.00824,58938.0,58937.0,3.19000911]
[1723686592803,0.00824,58938.0,58937.0,3.3660638]
[1723686593017,0.00824,58938.0,58937.0,3.60359817]
[1723686593220,0.00824,58938.0,58937.0,3.63762817]
[1723686593730,0.00824,58938.0,58937.0,3.64162817]
[1723686593935,0.00824,58938.0,58937.0,3.64062817]
[1723686594217,0.00824,58938.0,58937.0,3.65069295]
[1723686594425,0.0796,58954.0,58952.0,0.83138682]
[1723686594426,0.0646,58954.0,58952.0,0.83138682]
[1723686594601,0.0646,58954.0,58952.0,1.09435811]
[1723686594806,0.0646,58954.0,58952.0,1.11735811]
[1723686595346,0.00824,58967.0,58952.0,1.26125811]
[1723686595570,0.00824,58967.0,58952.0,3.0022193]
[1723686595571,1e-06,58953.0,58952.0,3.0022193]
[1723686595741,0.00824,58967.0,58959.0,1.13328882]
[1723686595888,0.00824,58967.0,58959.0,2.6617123]
[1723686596101,0.00824,58967.0,58959.0,2.8449123]
[1723686596310,0.00824,58967.0,58959.0,2.66891311]
[1723686596751,0.00824,58967.0,58966.0,0.3]
[1723686597024,0.00824,58967.0,58966.0,3.88773032]
[1723686597231,0.0082,58967.0,58966.0,3.88973032]
[1723686598465,0.0082,58967.0,58966.0,3.89979206]
[1723686598650,0.0082,58967.0,58966.0,3.91379206]
[1723686599234,0.0082,58967.0,58966.0,3.83229206]
[1723686599446,0.0082,58967.0,58966.0,3.84629206]
[1723686600469,0.0082,58967.0,58966.0,3.84429206]
[1723686600643,0.0735,58967.0,58966.0,3.84429206]
[1723686600850,0.0735,58967.0,58966.0,3.84629206]
[1723686601620,0.0082,58967.0,58966.0,3.84629206]
[1723686603289,0.0082,58967.0,58966.0,4.08371606]
[1723686603534,0.0082,58967.0,58966.0,3.84629206]
[1723686605570,0.0082,58967.0,58966.0,3.90629206]
[1723686605765,0.0082,58967.0,58966.0,3.35079206]
[1723686607022,0.0082,58967.0,58966.0,3.28599206]
[1723686607221,0.0082,58967.0,58966.0,3.28689736]
[1723686607636,0.0082,58967.0,58966.0,3.20719736]
[1723686608674,0.0736,58967.0,58966.0,3.20719736]
[1723686608832,0.0736,58967.0,58966.0,3.90719736]
[1723686609036,0.0082,58967.0,58966.0,3.90719736]
[1723686611758,0.0082,58967.0,58966.0,3.83719736]
[1723686612629,0.0082,58967.0,58966.0,3.98399736]
[1723686612817,0.0082,58967.0,58966.0,4.05189036]
[1723686614034,0.0082,58967.0,58966.0,3.90509036]
[1723686614235,0.0715,58967.0,58966.0,3.90509036]
[1723686614982,0.0082,58967.0,58966.0,3.90509036]
[1723686620330,0.07,58967.0,58966.0,3.15666636]
[1723686620536,0.07,58967.0,58966.0,3.13366636]
[1723686620872,0.07,58967.0,58966.0,2.77366636]
[1723686621438,0.0082,58967.0,58966.0,3.22009036]
[1723686621641,0.0082,58967.0,58966.0,3.92009036]
[1723686622445,0.0082,58967.0,58966.0,3.94309036]
[1723686623617,0.0082,58967.0,58966.0,4.11906805]
[1723686623816,0.0082,58967.0,58966.0,3.94309036]
[1723686623928,0.0082,58967.0,58966.0,3.88164405]
[1723686624790,0.0082,58967.0,58966.0,4.25646805]
[1723686624990,0.0082,58967.0,58966.0,4.19826805]
[1723686625394,0.0082,58967.0,58966.0,4.43569205]
[1723686625593,0.0082,58967.0,58966.0,4.19826805]
[1723686626501,0.00201659,58967.0,58966.0,4.19826805]
[1723686626671,0.0644,58978.0,58977.0,1.06841382]
[1723686626884,0.0644,58978.0,58977.0,1.56538511]
[1723686627088,0.07856778,58981.0,58980.0,1.40772782]
[1723686627089,0.00166778,58981.0,58980.0,1.40772782]
[1723686627370,1e-06,58988.0,58987.0,0.99555382]
[1723686627550,0.0644,59002.0,59001.0,0.59341382]
[1723686627752,0.0644,59002.0,59001.0,1.20266911]
[1723686627962,0.0644,59002.0,59001.0,1.37153172]
[1723686628166,0.0644,59002.0,59001.0,1.32566911]
[1723686628336,0.0644,59002.0,59001.0,0.85638511]
[1723686628534,0.0644,59002.0,59001.0,1.08838511]
[1723686628738,0.0644,59002.0,59001.0,1.32566911]
[1723686629544,0.0644,59002.0,59001.0,1.33588535]
[1723686629745,0.0644,59002.0,59001.0,1.38174796]
[1723686630115,0.0644,59002.0,59001.0,2.08174796]
[1723686630338,0.0644,59002.0,59001.0,2.03588535]
[1723686630526,0.0769,59005.0,59004.0,0.59338382]
[1723686630729,0.0631,59006.0,59005.0,0.35610582]
[1723686630984,0.0631,59006.0,59005.0,0.99361311]
[1723686631197,0.0631,59006.0,59005.0,1.69361311]
[1723686631409,0.0631,59006.0,59005.0,1.73947572]
[1723686631626,0.00824,59019.0,59017.0,0.00020382]
[1723686631627,0.1425,59018.0,59017.0,0.00020382]
[1723686631837,0.1425,59018.0,59017.0,0.28178411]
[1723686632041,0.15193292,59018.0,59017.0,0.61900311]
[1723686632259,0.1425,59018.0,59017.0,0.90475139]
[1723686632467,0.1425,59018.0,59017.0,1.09344111]
[1723686632671,0.00824,59019.0,59018.0,0.35602582]
[1723686632847,0.00824,59019.0,59018.0,1.09342711]
[1723686633081,0.00824,59019.0,59018.0,0.85621211]
[1723686633082,0.08894,59019.0,59018.0,0.85621211]
[1723686633291,0.14954,59019.0,59018.0,0.85621211]
[1723686634372,0.00824,59019.0,59018.0,0.86421211]
[1723686634577,0.00824,59019.0,59018.0,1.11642711]
[1723686634806,0.00824,59019.0,59018.0,0.87921211]
[1723686635134,0.00824,59019.0,59018.0,0.88421211]
[1723686635341,0.00824,59019.0,59018.0,1.09842711]
[1723686635736,0.00824,59019.0,59018.0,0.87121211]
[1723686636149,0.09124,59019.0,59018.0,0.86121211]
[1723686636321,0.09124,59019.0,59018.0,0.86921211]
[1723686636524,0.09124,59019.0,59018.0,0.86421211]
[1723686636723,0.00824,59019.0,59018.0,0.85621211]
[1723686636969,0.00824,59019.0,59018.0,1.11142711]
[1723686637143,0.00824,59019.0,59018.0,0.87421211]
[1723686637359,0.00824,59019.0,59018.0,1.10442711]
[1723686637771,0.00824,59019.0,59018.0,1.26282711]
[1723686637994,0.00824,59019.0,59018.0,1.19642711]
[1723686638353,0.00824,59019.0,59018.0,1.89642711]
[1723686638763,0.00824,59019.0,59018.0,1.81442711]
[1723686639181,0.07254,59019.0,59018.0,1.81442711]
[1723686639997,0.07254,59019.0,59018.0,2.69442711]
[1723686640558,0.00824,59019.0,59018.0,3.07314211]
[1723686640763,0.00824,59019.0,59018.0,3.09814211]
[1723686641190,0.00824,59019.0,59018.0,3.33535711]
[1723686641393,0.00824,59019.0,59018.0,3.09814211]
[1723686641613,0.00824,59019.0,59018.0,3.03374211]
[1723686643639,0.00824,59019.0,59018.0,3.03574211]
[1723686643845,0.00824,59019.0,59018.0,2.33574211]
[1723686646359,0.00824,59019.0,59018.0,2.33374211]
[1723686646561,0.00824,59019.0,59018.0,2.25464211]
[1723686646761,0.07314,59019.0,59018.0,2.01742711]
[1723686646966,0.07314,59019.0,59018.0,2.45721211]
[1723686646967,0.15344,59019.0,59018.0,2.45721211]
[1723686647213,0.15344,59019.0,59018.0,0.88417511]
[1723686647417,0.272045,59019.0,59018.0,0.721]
[1723686647616,0.746467,59019.0,59018.0,0.021]
[1723686647761,0.75622416,59019.0,59018.0,0.021]
[1723686647962,0.99343516,59019.0,59018.0,0.021]
[1723686649135,0.99343516,59019.0,59018.0,0.01]
[1723686649363,0.0809,59006.0,59000.0,0.00020382]
[1723686649563,0.12649201,59019.0,59000.0,0.16317511]
[1723686649564,0.38008,59002.0,59000.0,0.16317511]
[1723686649799,0.355926,59001.0,59000.0,0.16297129]
[1723686650076,0.08148565,59004.0,59001.0,0.00020382]
[1723686650077,0.118638,59003.0,59001.0,0.00020382]
[1723686650279,0.237266,59006.0,59002.0,0.00020382]
[1723686650482,0.237266,59006.0,59003.0,0.00020382]
[1723686650483,0.118636,59004.0,59003.0,0.00020382]
[1723686650677,0.118633,59006.0,59003.0,0.00020382]
[1723686650889,0.118633,59006.0,59000.0,0.16297129]
[1723686650890,0.118632,59006.0,59005.0,0.00020382]
[1723686651091,0.237264,59006.0,59001.0,0.00020382]
[1723686651239,0.11864,59002.0,59000.0,0.16317511]
[1723686651440,0.26384,59002.0,59001.0,0.00020382]
[1723686651641,0.118642,59001.0,59000.0,0.16317511]
[1723686651847,0.263842,59001.0,59000.0,0.16317511]
[1723686652249,0.263842,59001.0,58988.0,0.72715528]
[1723686652250,0.11865,58997.0,58996.0,0.00020382]
[1723686652595,0.50115,58997.0,58996.0,0.00020382]
[1723686652793,0.263854,58995.0,58994.0,0.00020382]
[1723686652999,0.1452,58995.0,58994.0,0.16317511]
[1723686653959,0.1452,58995.0,58994.0,0.16517511]
[1723686654442,0.1452,58995.0,58994.0,0.17017511]
[1723686654624,0.1452,58995.0,58994.0,0.16817511]
[1723686655202,0.1492,58995.0,58994.0,0.16817511]
[1723686655641,0.267854,58995.0,58994.0,0.16317511]
[1723686656053,0.1492,58995.0,58994.0,0.16317511]
[1723686656590,0.1452,58995.0,58994.0,0.16317511]
[1723686656808,0.1472,58995.0,58994.0,0.16317511]
[1723686658476,0.265854,58995.0,58994.0,0.16317511]
[1723686658685,0.118664,58990.0,58989.0,0.00020382]
[1723686658896,0.1436,58990.0,58989.0,0.16317511]
[1723686660117,0.1436,58990.0,58989.0,0.16917511]
[1723686660633,0.1436,58990.0,58989.0,0.17317511]
[1723686660795,0.15310492,58990.0,58989.0,0.17317511]
[1723686661378,0.15310492,58990.0,58989.0,0.16917511]
[1723686661804,0.15310492,58990.0,58989.0,0.16317511]
[1723686662766,0.15310492,58990.0,58989.0,0.17117511]
[1723686662967,0.27176892,58990.0,58989.0,0.17117511]
[1723686663572,0.50909692,58990.0,58989.0,0.00820382]
[1723686663801,1.06523857,58990.0,58989.0,0.008]
[1723686664802,1.06523857,58990.0,58989.0,0.005]
[1723686665229,1.06523857,58990.0,58988.0,0.0009064]
[1723686665230,0.59333,58989.0,58988.0,0.0009064]
[1723686665431,0.73093,58989.0,58988.0,0.0009064]
[1723686665633,0.74032954,58989.0,58988.0,0.0009064]
[1723686666619,0.74032954,58989.0,58988.0,0.0019064]
[1723686667025,0.74032954,58989.0,58988.0,0.0029064]
[1723686667026,0.74732954,58989.0,58988.0,0.0029064]
[1723686673262,0.74732954,58989.0,58988.0,0.00311022]
[1723686673409,0.74732954,58989.0,58988.0,0.0029064]
[1723686674414,0.74732954,58989.0,58988.0,0.00311022]
[1723686674612,0.74732954,58989.0,58988.0,0.0029064]
[1723686675360,0.98466154,58989.0,58988.0,0.0029064]
[1723686676463,0.43309754,58989.0,58988.0,0.00311022]
[1723686677302,0.43309754,58989.0,58988.0,0.0029064]
[1723686679299,0.43309754,58989.0,58988.0,0.00311022]
[1723686681459,0.43309754,58989.0,58988.0,0.0029064]
[1723686682660,0.74562954,58989.0,58988.0,0.0029064]
[1723686683140,0.99981533,58989.0,58988.0,0.0029064]
[1723686683608,0.98296154,58989.0,58988.0,0.0029064]
[1723686684044,0.74858239,58989.0,58988.0,0.0029064]
[1723686684253,0.27391839,58989.0,58988.0,0.0029064]
[1723686684482,0.51125039,58989.0,58988.0,0.0029064]
[1723686684655,0.74858239,58989.0,58988.0,0.00311022]
[1723686684837,0.74858239,58989.0,58988.0,0.0029064]
[1723686685641,0.74562954,58989.0,58988.0,0.0029064]
[1723686688036,0.7454255,58989.0,58988.0,0.0029064]
[1723686688447,0.6702255,58989.0,58988.0,0.0029064]
[1723686689660,0.7461255,58989.0,58988.0,0.0029064]
[1723686689887,0.9834575,58989.0,58988.0,0.0029064]
[1723686692329,1.06921219,58989.0,58988.0,0.0029064]
[1723686693554,1.27600257,58989.0,58988.0,0.0029064]
[1723686693760,1.0694878,58989.0,58988.0,0.0029064]
[1723686693963,1.06948777,58989.0,58988.0,0.0029064]
[1723686694173,1.27711697,58989.0,58988.0,0.0029064]
[1723686694380,0.99345644,58989.0,58988.0,0.0029064]
[1723686694601,1.06952112,58989.0,58988.0,0.0029064]
[1723686694987,1.38039595,58989.0,58988.0,0.0029064]
[1723686695112,1.40575047,58989.0,58988.0,0.0029064]
[1723686695493,1.27897786,58989.0,58988.0,0.0029064]
[1723686697140,1.88828115,58989.0,58988.0,0.0029064]
[1723686697345,1.91817881,58989.0,58988.0,0.0029064]
[1723686697547,2.28013822,58989.0,58988.0,0.0029064]
[1723686697759,2.44310951,58989.0,58988.0,0.0029064]
[1723686697966,2.70344151,58989.0,58988.0,0.0029064]
[1723686698175,0.494224,58968.0,58967.0,0.48891388]
[1723686698373,1.04518744,58968.0,58967.0,0.48891388]
[1723686698582,1.04518744,58968.0,58966.0,0.0009053]
[1723686698583,0.83097,58967.0,58966.0,0.0009053]
[1723686698793,1.22686178,58967.0,58966.0,0.0009053]
[1723686699198,1.2361642,58967.0,58966.0,0.0009053]
[1723686699609,0.91636173,58967.0,58966.0,0.0009053]
[1723686700226,1.05164483,58967.0,58966.0,0.0019053]
[1723686700436,0.90243614,58967.0,58966.0,0.0019053]
[1723686700613,0.68595434,58967.0,58966.0,0.0019053]
[1723686701469,0.69095434,58967.0,58966.0,0.0029053]
[1723686701713,0.61485242,58967.0,58966.0,0.0019053]
[1723686701927,0.60285242,58967.0,58966.0,0.0009053]
[1723686702137,0.68395434,58967.0,58966.0,0.0019053]
[1723686702335,0.69295434,58967.0,58966.0,0.0029053]
[1723686702540,0.61685242,58967.0,58966.0,0.0029053]
[1723686702869,0.6675653,58967.0,58966.0,0.0029053]
[1723686703298,0.61685242,58967.0,58966.0,0.0029053]
[1723686703508,0.66755935,58967.0,58966.0,0.0029053]
[1723686703927,0.66755921,58967.0,58966.0,0.0029053]
[1723686704084,0.77854921,58967.0,58966.0,0.0029053]
[1723686704545,0.72784242,58967.0,58966.0,0.0029053]
[1723686704718,0.77854658,58967.0,58966.0,0.0029053]
[1723686705366,0.66755658,58967.0,58966.0,0.0029053]
[1723686705548,0.61685242,58967.0,58966.0,0.0029053]
[1723686729020,0.37943242,58967.0,58966.0,0.0029053]
[1723686729274,0.61685242,58967.0,58966.0,0.0029053]
[1723686730274,0.02330242,58967.0,58966.0,0.66521641]
[1723686730516,0.014,58967.0,58966.0,0.90243659]
[1723686731030,0.014,58967.0,58966.0,0.90264041]
[1723686731224,0.014,58967.0,58966.0,0.24358041]
[1723686731423,0.005,58967.0,58966.0,0.36129241]
[1723686731627,0.01421516,58967.0,58966.0,0.59871641]
[1723686731831,0.012,58967.0,58966.0,0.59871641]
[1723686732380,0.012,58967.0,58966.0,0.90224041]
[1723686734607,0.012,58967.0,58966.0,1.23966441]
[1723686734833,0.012,58967.0,58966.0,1.93966441]
[1723686735235,0.012,58967.0,58966.0,2.17708841]
[1723686735778,0.005,58967.0,58966.0,2.17608841]
[1723686735931,0.4726,58978.0,58977.0,0.73405382]
[1723686736146,0.4726,58978.0,58977.0,0.89702511]
[1723686736347,0.48181516,58978.0,58977.0,0.89702511]
[1723686736748,0.48181516,58978.0,58977.0,0.42226511]
[1723686737003,0.18229,58977.0,58974.0,0.00020382]
[1723686737201,0.0636,58977.0,58975.0,0.16297129]
[1723686737613,0.237389,58975.0,58970.0,0.00020382]
[1723686737826,0.237389,58975.0,58966.0,0.8111423]
[1723686737827,0.11871,58967.0,58966.0,0.7009053]
[1723686738032,0.67575,58967.0,58966.0,0.7009053]
[1723686738232,0.67575,58967.0,58966.0,0.0009053]
[1723686738233,0.98598516,58967.0,58966.0,0.0009053]
[1723686738640,0.74856516,58967.0,58966.0,0.0009053]
[1723686738842,0.7424783,58967.0,58966.0,0.0009053]
[1723686739248,0.7474783,58967.0,58966.0,0.0069053]
[1723686739530,0.7424783,58967.0,58966.0,0.0059053]
[1723686739749,0.7424783,58967.0,58966.0,0.0009053]
[1723686739976,0.7171114,58967.0,58966.0,0.0009053]
[1723686740164,0.67536516,58967.0,58966.0,0.0019053]
[1723686740365,0.72611137,58967.0,58966.0,0.0019053]
[1723686740568,0.7514783,58967.0,58966.0,0.0019053]
[1723686740767,0.68036516,58967.0,58966.0,0.0029053]
[1723686741661,1.07301563,58967.0,58966.0,0.0029053]
[1723686742276,0.75651798,58967.0,58966.0,0.0029053]
[1723686742482,0.68036516,58967.0,58966.0,0.0029053]
[1723686742682,0.75653015,58967.0,58966.0,0.0029053]
[1723686743691,0.07400022,58967.0,58966.0,0.28479241]
[1723686744859,0.07400022,58967.0,58966.0,0.52221641]
[1723686744860,0.02321516,58967.0,58966.0,0.52221641]
[1723686745075,0.02321516,58967.0,58966.0,0.60411641]
[1723686745415,0.02321516,58967.0,58966.0,0.90424041]
[1723686745621,0.02321516,58967.0,58966.0,1.14166441]
[1723686745802,0.02321516,58967.0,58966.0,1.24166441]
[1723686745973,0.014,58967.0,58966.0,1.24166441]
[1723686750088,0.014,58967.0,58966.0,0.34798041]
[1723686750283,0.014,58967.0,58966.0,0.46669241]
[1723686750510,0.0231736,58967.0,58966.0,0.46669241]
[1723686750919,0.0231736,58967.0,58966.0,0.60411641]
[1723686751149,0.0231736,58967.0,58966.0,0.24798041]
[1723686751410,0.2813836,58967.0,58966.0,0.0029053]
[1723686751620,0.5188036,58967.0,58966.0,0.0029053]
[1723686751831,0.2025836,58967.0,58966.0,0.0029053]
[1723686752238,0.4400036,58967.0,58966.0,0.00310912]
[1723686752807,0.4400036,58967.0,58966.0,0.0029053]
[1723686753156,0.49078866,58967.0,58966.0,0.0029053]
[1723686753368,0.4400036,58967.0,58966.0,0.0029053]
[1723686754386,0.2025836,58967.0,58966.0,0.00310912]
[1723686754585,0.0231736,58967.0,58966.0,0.00310912]
[1723686755435,0.0231736,58967.0,58966.0,0.52221641]
[1723686755867,0.014,58967.0,58966.0,0.52221641]
[1723686755996,0.84903419,58967.0,58966.0,0.0029053]
[1723686756195,1.26705217,58967.0,58966.0,0.0029053]
[1723686756416,1.58807731,58967.0,58966.0,0.0029053]
[1723686756849,1.74036747,58967.0,58966.0,0.0029053]
[1723686757020,1.95311973,58967.0,58966.0,0.0029053]
[1723686757455,1.64653079,58967.0,58966.0,0.0029053]
[1723686757649,1.04406837,58967.0,58966.0,0.0029053]
[1723686758276,0.7567539,58967.0,58966.0,0.0029053]
[1723686758861,1.14818779,58967.0,58966.0,0.0029053]
[1723686760061,1.04667919,58967.0,58966.0,0.0029053]
[1723686760269,1.14818981,58967.0,58966.0,0.0029053]
[1723686763784,1.04667919,58967.0,58966.0,0.0029053]
[1723686764067,1.14818883,58967.0,58966.0,0.0029053]
[1723686764929,0.0232039,58967.0,58966.0,0.00310912]
[1723686765132,0.07395593,58967.0,58966.0,0.0029053]
[1723686765333,0.0232039,58967.0,58966.0,0.0029053]
[1723686768384,0.0232039,58967.0,58966.0,0.08470912]
[1723686768610,0.0232039,58967.0,58966.0,0.0845053]
[1723686769834,0.0232039,58967.0,58966.0,0.08470912]
[1723686771439,0.0232039,58967.0,58966.0,0.0845053]
[1723686772273,0.0232039,58967.0,58966.0,0.08470912]
[1723686772657,0.0232039,58967.0,58966.0,0.84124041]
[1723686772886,0.014,58967.0,58966.0,0.60381641]
[1723686773074,0.014,58967.0,58966.0,0.84124041]
[1723686773620,0.014,58967.0,58966.0,0.60381641]
[1723686777260,0.014,58967.0,58966.0,0.84124041]
[1723686777593,0.014,58967.0,58966.0,0.60381641]
[1723686777704,0.014,58967.0,58966.0,0.24768041]
[1723686778126,0.02317443,58967.0,58966.0,0.36639241]
[1723686780160,0.02317443,58967.0,58966.0,0.60381641]
[1723686780595,0.02317443,58967.0,58966.0,0.84124041]
[1723686780793,0.014,58967.0,58966.0,0.84124041]
[1723686782005,0.014,58967.0,58966.0,1.13886441]
[1723686783407,0.014,58967.0,58966.0,1.98886441]
[1723686784987,0.014,58967.0,58966.0,1.76177038]
[1723686785193,0.014,58967.0,58966.0,1.45381641]
[1723686785628,0.014,58967.0,58966.0,0.60381641]
[1723686786165,0.27281,58967.0,58966.0,0.16608041]
[1723686786371,0.51023,58967.0,58966.0,0.16608041]
[1723686786606,0.16333194,58967.0,58966.0,0.16608041]
[1723686786819,0.02323194,58967.0,58966.0,0.28479241]
[1723686789259,0.02323194,58967.0,58966.0,0.16608041]
[1723686794069,0.28644194,58967.0,58966.0,0.16608041]
[1723686794504,0.33722288,58967.0,58966.0,0.16608041]
[1723686795133,0.57464288,58967.0,58966.0,0.16608041]
[1723686795308,0.57464288,58967.0,58966.0,0.0029053]
[1723686795527,0.83745335,58967.0,58966.0,0.0029053]
[1723686795726,1.39098064,58967.0,58966.0,0.0029053]
[1723686795957,1.28926947,58967.0,58966.0,0.0029053]
[1723686796152,1.41623526,58967.0,58966.0,0.0029053]
[1723686796355,1.44005614,58967.0,58966.0,0.0029053]
[1723686796604,1.28926947,58967.0,58966.0,0.0029053]
[1723686796931,0.97004947,58967.0,58966.0,0.0029053]
[1723686797133,1.07162946,58967.0,58966.0,0.0029053]
[1723686798091,0.67948194,58967.0,58966.0,0.0029053]
[1723686798324,0.97124997,58967.0,58966.0,0.0029053]
[1723686798531,1.07282996,58967.0,58966.0,0.0029053]
[1723686799151,0.49671323,58967.0,58966.0,0.0029053]
[1723686799324,0.28084858,58967.0,58966.0,0.00310912]
[1723686799738,0.28084858,58967.0,58966.0,0.0029053]
[1723686799933,0.44206194,58967.0,58966.0,0.0029053]
[1723686800142,0.51827128,58967.0,58966.0,0.0029053]
[1723686800986,0.44206194,58967.0,58966.0,0.0029053]
[1723686801190,0.51826538,58967.0,58966.0,0.0029053]
[1723686802042,0.16213329,58967.0,58966.0,0.0029053]
[1723686802242,0.07403607,58967.0,58966.0,0.36789241]
[1723686802446,0.02323194,58967.0,58966.0,0.36789241]
[1723686802805,0.02323194,58967.0,58966.0,0.60531641]
[1723686803002,0.02323194,58967.0,58966.0,0.90744041]
[1723686803414,0.02323194,58967.0,58966.0,1.14486441]
[1723686803637,0.014,58967.0,58966.0,0.90744041]
[1723686805124,0.014,58967.0,58966.0,1.00744041]
[1723686805309,0.014,58967.0,58966.0,1.24486441]
[1723686807327,0.014,58967.0,58966.0,1.00744041]
[1723686807612,0.014,58967.0,58966.0,1.24486441]
[1723686809037,0.014,58967.0,58966.0,1.00744041]
[1723686810598,0.014,58967.0,58966.0,1.24486441]
[1723686811584,0.014,58967.0,58966.0,1.00744041]
[1723686812683,0.014,58967.0,58966.0,1.24486441]
[1723686813088,0.014,58967.0,58966.0,1.78744041]
[1723686813291,0.014,58967.0,58966.0,2.48744041]
[1723686813779,0.01379596,58967.0,58966.0,2.48744041]
[1723686814912,0.01379596,58967.0,58966.0,1.78744041]
[1723686815556,0.01379596,58967.0,58966.0,1.80744041]
[1723686815755,0.01379596,58967.0,58966.0,1.74274041]
[1723686815960,0.36992596,58967.0,58966.0,0.16608041]
[1723686816160,0.43182596,58967.0,58966.0,0.16608041]
[1723686816362,0.44112971,58967.0,58966.0,0.16608041]
[1723686817244,0.08499971,58967.0,58966.0,0.16608041]
[1723686817567,0.08499971,58967.0,58966.0,0.36449241]
[1723686817568,0.02309971,58967.0,58966.0,0.36449241]
[1723686817772,0.01379596,58967.0,58966.0,0.24578041]
[1723686817968,0.02309971,58967.0,58966.0,0.24578041]
[1723686818195,0.02309971,58967.0,58966.0,0.36449241]
[1723686818590,0.02309971,58967.0,58966.0,0.24578041]
[1723686822017,0.02309971,58967.0,58966.0,0.16608041]
[1723686825350,0.02309971,58967.0,58966.0,0.28479241]
[1723686827148,0.02309971,58967.0,58966.0,0.35270441]
[1723686827401,0.02309971,58967.0,58966.0,0.23399241]
[1723686827574,0.16829971,58967.0,58966.0,0.16608041]
[1723686831658,0.57525982,58967.0,58966.0,0.0029053]
[1723686831859,1.15525208,58967.0,58966.0,0.0029053]
[1723686832098,1.15527033,58967.0,58966.0,0.0029053]
[1723686832300,1.15516022,58967.0,58966.0,0.0029053]
[1723686832505,0.76184971,58967.0,58966.0,0.0029053]
[1723686833028,0.83809057,58967.0,58966.0,0.0029053]
[1723686833412,0.52442971,58967.0,58966.0,0.0029053]
[1723686835595,0.57525404,58967.0,58966.0,0.0029053]
[1723686835914,0.52525371,58967.0,58966.0,0.0029053]
[1723686836315,0.57607804,58967.0,58966.0,0.0029053]
[1723686836722,0.52525371,58967.0,58966.0,0.0029053]
[1723686837147,0.57607804,58967.0,58966.0,0.0029053]
[1723686838002,0.25535804,58967.0,58966.0,0.16608041]
[1723686838206,0.08582371,58967.0,58966.0,0.16587659]
[1723686840290,0.02392371,58967.0,58966.0,0.16587659]
[1723686840525,0.02392371,58967.0,58966.0,1.07366441]
[1723686840855,0.02392371,58967.0,58966.0,0.89754041]
[1723686841054,0.01461996,58967.0,58966.0,0.89754041]
[1723686841513,0.01461996,58967.0,58966.0,0.83524041]
[1723686841514,0.005824,58967.0,58966.0,0.83524041]
[1723686841704,0.000824,58967.0,58966.0,0.83424041]
[1723686841889,0.000824,58967.0,58966.0,1.13376441]
[1723686842046,0.000824,58967.0,58966.0,1.55376441]
[1723686843331,0.004824,58967.0,58966.0,1.55376441]
[1723686843736,0.000824,58967.0,58966.0,1.55376441]
[1723686844134,0.000824,58967.0,58966.0,1.23376441]
[1723686844513,0.000824,58967.0,58966.0,1.40975346]
[1723686846077,0.000824,58967.0,58966.0,2.42975346]
[1723686846296,0.000824,58967.0,58966.0,2.25376441]
[1723686849958,0.000824,58967.0,58966.0,2.33726441]
[1723686851710,0.000824,58967.0,58966.0,3.01110025]
[1723686851909,0.000824,58967.0,58966.0,3.06388139]
[1723686852126,0.0655,58986.0,58985.0,0.59357382]
[1723686852332,0.05164268,58988.0,58987.0,0.59355382]
[1723686852333,0.000824,58988.0,58987.0,0.59355382]
[1723686852543,0.000824,58988.0,58987.0,0.84002511]
[1723686852756,0.000824,58988.0,58987.0,1.15686511]
[1723686853291,0.000824,58988.0,58987.0,0.84002511]
[1723686853493,0.000824,58988.0,58987.0,0.75752511]
[1723686853494,0.068124,58988.0,58987.0,0.75752511]
[1723686854237,0.081124,58988.0,58987.0,0.75852511]
[1723686855562,0.081124,58988.0,58987.0,0.75752511]
[1723686855563,0.076124,58988.0,58987.0,0.75752511]
[1723686855725,0.076124,58988.0,58987.0,0.76052511]
[1723686856126,0.063124,58988.0,58987.0,0.75952511]
[1723686857142,0.063124,58988.0,58987.0,0.76052511]
[1723686858467,0.000824,58988.0,58987.0,0.76052511]
[1723686862896,0.000824,58988.0,58987.0,0.82522511]
[1723686863888,0.000824,58988.0,58987.0,1.14406511]
[1723686864098,0.000824,58988.0,58987.0,1.20826511]
[1723686864297,0.000824,58988.0,58987.0,1.80826511]
[1723686864769,0.000824,58988.0,58987.0,1.50672511]
[1723686866008,0.000824,58988.0,58987.0,1.18788511]
[1723686866172,0.064824,58988.0,58987.0,0.82522511]
[1723686868763,0.000824,58988.0,58987.0,0.90312511]
[1723686870474,0.000824,58988.0,58987.0,0.90308511]